bitfinex-derivatives/quotes_ETHF0:USTF0_20210405
["timestamp","ask_amount","ask_price","bid_price","bid_amount"]
[1617651267947,2.90695,2101.5,2101.0,0.09305]
[1617651267948,3.79992147,2101.5,2101.1,78.2287]
[1617651268148,3.79992147,2101.5,2101.4,5.82]
[1617651268549,3.79992147,2101.5,2101.2,5.93]
[1617651268753,3.79992147,2101.5,2101.4,8.85695]
[1617651269155,3.79992147,2101.5,2101.4,2.90695]
[1617651269349,3.79992147,2101.5,2101.4,8.70695]
[1617651271457,0.89297147,2101.5,2101.4,8.70695]
[1617651271659,0.8933479,2101.6,2101.4,8.70695]
[1617651271858,0.89342594,2101.7,2101.4,8.70695]
[1617651273059,0.89342594,2101.7,2101.5,69.1214]
[1617651273262,0.89389177,2101.8,2101.5,69.1214]
[1617651273460,0.89389177,2101.8,2101.6,5.82]
[1617651273661,0.89371724,2101.9,2101.6,5.82]
[1617651274661,0.89410556,2101.8,2101.6,5.82]
[1617651275060,0.89401655,2101.7,2101.6,5.82]
[1617651275361,1.6705426,2101.7,2101.6,5.82]
[1617651275561,80.6668426,2101.7,2101.6,5.82]
[1617651275761,79.89031655,2101.7,2101.6,5.82]
[1617651275961,79.89031655,2101.7,2101.4,5.81]
[1617651276162,80.12049685,2101.7,2101.4,5.81]
[1617651276360,80.12049685,2101.7,2101.6,5.42]
[1617651276561,1.11720452,2101.8,2101.5,5.74]
[1617651276761,1.11720452,2101.8,2101.7,2.90695]
[1617651277161,1.11720452,2101.8,2101.7,8.12695]
[1617651277363,1.11731627,2101.9,2101.7,8.12695]
[1617651278466,0.89388952,2101.8,2101.7,8.12695]
[1617651278866,1.1173619,2102.0,2101.7,8.12695]
[1617651279266,1.11830113,2101.9,2101.7,8.12695]
[1617651280967,1.11830113,2101.9,2101.7,9.08105]
[1617651281769,1.11830113,2101.9,2101.7,8.12695]
[1617651282268,0.89487406,2101.8,2101.7,8.12695]
[1617651282669,1.11846976,2101.9,2101.7,8.12695]
[1617651283074,0.77566747,2101.8,2101.7,8.12695]
[1617651283271,1.11846976,2101.9,2101.7,8.12695]
[1617651283670,1.11853858,2101.8,2101.7,8.12695]
[1617651283970,1.11859753,2101.9,2101.7,8.12695]
[1617651284774,1.11859753,2101.9,2101.7,10.50325]
[1617651284972,2.90695,2101.8,2101.7,10.50325]
[1617651285472,3.68272586,2101.8,2101.7,10.50325]
[1617651286175,3.68272586,2101.8,2101.7,8.12695]
[1617651286373,4.80125668,2101.8,2101.7,8.12695]
[1617651288575,1.89430668,2101.8,2101.7,8.12695]
[1617651288776,1.67146762,2101.8,2101.7,8.12695]
[1617651289176,0.89606553,2101.9,2101.8,55.995]
[1617651289376,0.89606553,2101.9,2101.8,58.0682]
[1617651289576,0.89607137,2102.0,2101.9,5.95]
[1617651289777,0.89612992,2102.1,2101.9,5.95]
[1617651289976,0.89612992,2102.1,2101.8,63.9282]
[1617651290176,0.7604672,2102.0,2101.9,5.75]
[1617651290578,0.89612992,2102.1,2101.9,5.75]
[1617651290980,0.76040795,2102.0,2101.9,5.75]
[1617651291179,0.8959523,2102.0,2101.9,5.75]
[1617651291679,1.11994037,2102.2,2101.9,5.75]
[1617651292279,1.11982645,2102.1,2101.9,5.75]
[1617651292478,1.88000036,2102.1,2101.9,5.75]
[1617651292679,1.88000036,2102.1,2101.8,5.82]
[1617651292680,69.0836,2101.9,2101.8,5.82]
[1617651292884,71.99055,2101.9,2101.8,8.72695]
[1617651293084,71.99055,2101.9,2101.8,2.90695]
[1617651293284,73.87463228,2101.9,2101.8,8.62695]
[1617651297490,74.9939906,2101.9,2101.8,8.62695]
[1617651298791,5.9103906,2101.9,2101.8,8.62695]
[1617651299191,3.66688653,2101.9,2101.8,8.62695]
[1617651299593,3.66688653,2101.9,2101.8,9.58805]
[1617651299791,3.66688653,2101.9,2101.8,8.62695]
[1617651300592,4.56341899,2101.9,2101.8,8.62695]
[1617651300792,4.56341899,2101.9,2101.8,9.58765]
[1617651301195,1.65646899,2101.9,2101.8,9.58765]
[1617651301895,1.65646899,2101.9,2101.8,8.62695]
[1617651302095,1.83553246,2101.9,2101.8,8.62695]
[1617651302294,0.89653246,2101.9,2101.8,8.62695]
[1617651302496,13.69643218,2101.9,2101.8,8.62695]
[1617651302697,12.89653246,2101.9,2101.8,8.62695]
[1617651302897,12.89653246,2101.9,2101.8,9.58935]
[1617651303098,14.82055351,2101.9,2101.8,9.58935]
[1617651303799,12.79990187,2101.9,2101.8,8.62695]
[1617651304397,12.0,2101.9,2101.8,8.62695]
[1617651304798,12.0,2101.9,2101.8,9.57295]
[1617651305398,12.0,2101.9,2101.8,8.62695]
[1617651306499,12.0,2101.9,2101.8,9.57455]
[1617651308504,12.0,2101.9,2101.8,11.57455]
[1617651309906,11.2845,2101.9,2101.8,11.57455]
[1617651310312,11.56446789,2101.9,2101.8,11.57455]
[1617651310707,12.52546789,2101.9,2101.8,11.57455]
[1617651310907,11.56446789,2101.9,2101.8,11.57455]
[1617651311308,11.2845,2101.9,2101.8,11.57455]
[1617651312907,11.2316,2101.9,2101.8,11.57455]
[1617651313808,11.2316,2101.9,2101.8,9.57455]
[1617651316013,11.2316,2101.9,2101.8,12.15645]
[1617651318917,11.51147347,2101.9,2101.8,12.15645]
[1617651320218,11.51147347,2101.9,2101.8,14.15645]
[1617651320418,8.8643,2101.9,2101.8,14.15645]
[1617651320618,8.7944,2101.9,2101.8,14.15645]
[1617651321024,8.0723,2101.9,2101.8,14.15645]
[1617651321921,7.35,2101.9,2101.8,14.15645]
[1617651322321,7.62985656,2101.9,2101.8,14.15645]
[1617651322619,7.35,2101.9,2101.8,14.15645]
[1617651323421,6.6296,2101.9,2101.8,14.15645]
[1617651323920,6.68557994,2101.9,2101.8,14.15645]
[1617651324521,5.02447994,2101.9,2101.8,14.15645]
[1617651324921,4.99648713,2101.9,2101.8,14.15645]
[1617651325120,4.75698713,2101.9,2101.8,14.15645]
[1617651325321,4.74299295,2101.9,2101.8,14.15645]
[1617651325521,3.80139295,2101.9,2101.8,14.15645]
[1617651326022,2.0097,2101.9,2101.8,14.15645]
[1617651326223,2.02369303,2101.9,2101.8,14.15645]
[1617651327125,0.36079303,2101.9,2101.8,14.15645]
[1617651327324,0.3468,2101.9,2101.8,14.15645]
[1617651327526,0.08447056,2102.7,2101.8,14.15645]
[1617651327729,0.89554819,2103.0,2102.2,73.198]
[1617651327927,0.89554819,2103.0,2102.3,2.0]
[1617651328125,0.89558,2102.9,2102.3,2.0]
[1617651328326,0.89558,2102.9,2102.4,5.78]
[1617651328726,0.89558,2102.9,2102.3,2.0]
[1617651328727,0.89558,2102.9,2102.2,67.978]
[1617651328927,0.89558,2102.9,2102.5,5.96]
[1617651329126,0.89558,2102.9,2102.8,2.90695]
[1617651329326,0.89558,2102.9,2102.8,2.98695]
[1617651329628,0.89419167,2103.1,2102.8,2.98695]
[1617651329827,1.83499167,2103.1,2102.8,2.98695]
[1617651330027,0.89419167,2103.1,2102.8,2.98695]
[1617651330228,0.79387045,2102.9,2102.8,2.98695]
[1617651330529,0.89419167,2103.1,2102.8,2.98695]
[1617651333931,0.89417228,2103.2,2102.8,2.98695]
[1617651335031,0.89418905,2103.1,2102.8,0.08]
[1617651335432,0.89418905,2103.1,2102.6,5.98]
[1617651335731,0.89418905,2103.1,2102.9,5.9]
[1617651336131,0.89416164,2103.2,2102.6,5.76]
[1617651336531,0.89416164,2103.2,2103.0,5.97]
[1617651336731,0.89416164,2103.2,2102.6,5.95]
[1617651337132,0.89416164,2103.2,2103.1,8.89695]
[1617651337334,0.89416164,2103.2,2103.1,2.90695]
[1617651337634,0.89416164,2103.2,2103.1,8.63695]
[1617651337834,1.68802085,2103.2,2103.1,8.63695]
[1617651338034,1.11771535,2103.4,2103.1,8.63695]
[1617651338234,1.11771535,2103.4,2103.1,9.58385]
[1617651338435,0.89416932,2103.2,2103.1,8.63695]
[1617651340737,1.11771535,2103.4,2103.1,8.63695]
[1617651340738,0.89306196,2103.4,2103.1,8.63695]
[1617651341538,0.89306196,2103.4,2103.1,9.59115]
[1617651342339,0.89306196,2103.4,2103.1,8.63695]
[1617651342739,0.89304469,2103.5,2103.1,8.63695]
[1617651342937,0.79541887,2103.3,2103.1,8.63695]
[1617651343342,1.68845539,2103.5,2103.1,8.63695]
[1617651343539,1.68845539,2103.5,2103.1,9.57945]
[1617651343740,1.68845539,2103.5,2103.1,8.63695]
[1617651344342,0.7954107,2103.5,2103.4,72.3342]
[1617651344542,0.7954107,2103.5,2103.4,78.3142]
[1617651345142,0.7954107,2103.5,2103.4,81.22115]
[1617651345641,0.7954107,2103.5,2103.4,8.88695]
[1617651347744,1.688387,2103.5,2103.4,8.88695]
[1617651348544,0.7954107,2103.5,2103.4,8.88695]
[1617651350748,1.68838915,2103.5,2103.4,8.88695]
[1617651351149,0.7954107,2103.5,2103.4,8.88695]
[1617651356652,0.7954107,2103.5,2103.4,8.86695]
[1617651356851,3.79965504,2103.6,2103.4,8.86695]
[1617651356852,2.90695,2103.6,2103.4,8.86695]
[1617651357253,3.79963467,2103.6,2103.4,8.86695]
[1617651357955,2.90695,2103.6,2103.4,8.86695]
[1617651358253,3.79963311,2103.6,2103.4,8.86695]
[1617651358654,2.90695,2103.6,2103.4,8.86695]
[1617651358954,3.79961857,2103.6,2103.4,8.86695]
[1617651359754,11.0,2103.5,2103.4,8.86695]
[1617651362458,24.0,2103.5,2103.4,8.86695]
[1617651363260,24.0,2103.5,2103.4,5.96]
[1617651363662,24.89294131,2103.5,2103.4,5.96]
[1617651364263,24.0,2103.5,2103.4,5.96]
[1617651365870,24.9459,2103.5,2103.4,5.96]
[1617651366270,24.9459,2103.5,2103.4,5.1428]
[1617651366471,26.06213565,2103.5,2103.4,5.1428]
[1617651366772,24.9459,2103.5,2103.4,5.1428]
[1617651368074,24.0,2103.5,2103.4,5.1428]
[1617651371978,27.72979208,2103.5,2103.4,5.1428]
[1617651372378,24.0,2103.5,2103.4,5.1428]
[1617651373582,25.11623089,2103.5,2103.4,5.1428]
[1617651373781,24.0,2103.5,2103.4,5.1428]
[1617651375482,24.0,2103.5,2103.4,8.04975]
[1617651376484,24.89363095,2103.5,2103.4,8.04975]
[1617651376783,24.0,2103.5,2103.4,8.04975]
[1617651377183,24.89363367,2103.5,2103.4,8.04975]
[1617651377783,24.89363367,2103.5,2103.4,10.32405]
[1617651379082,24.0,2103.5,2103.4,10.32405]
[1617651384089,24.0,2103.5,2103.4,8.04975]
[1617651384291,24.89363752,2103.5,2103.4,8.04975]
[1617651384992,25.11820438,2103.5,2103.4,8.04975]
[1617651385693,25.11820438,2103.5,2103.4,5.1428]
[1617651386294,24.0,2103.5,2103.4,5.1428]
[1617651387597,25.11836428,2103.5,2103.4,5.1428]
[1617651389599,25.11836428,2103.5,2103.4,8.04975]
[1617651391801,24.0,2103.5,2103.4,8.04975]
[1617651393702,24.89459072,2103.5,2103.4,8.04975]
[1617651396405,25.11947291,2103.5,2103.4,8.04975]
[1617651396704,24.0,2103.5,2103.4,8.04975]
[1617651398806,25.11936744,2103.5,2103.4,8.04975]
[1617651400007,24.0,2103.5,2103.4,8.04975]
[1617651400407,25.11936176,2103.5,2103.4,8.04975]
[1617651400708,24.0,2103.5,2103.4,8.04975]
[1617651401509,25.11932496,2103.5,2103.4,8.04975]
[1617651402211,24.0,2103.5,2103.4,8.04975]
[1617651402909,24.67148483,2103.5,2103.4,8.04975]
[1617651403509,24.44761795,2103.5,2103.4,8.04975]
[1617651407414,24.0,2103.5,2103.4,8.04975]
[1617651412527,24.44730992,2103.5,2103.4,8.04975]
[1617651413326,24.0,2103.5,2103.4,8.04975]
[1617651414427,24.44731657,2103.5,2103.4,8.04975]
[1617651416628,24.0,2103.5,2103.4,8.04975]
[1617651421835,26.90695,2103.5,2103.4,8.04975]
[1617651422036,27.35404769,2103.5,2103.4,8.04975]
[1617651422235,25.11772516,2103.5,2103.4,8.04975]
[1617651422435,24.67062747,2103.5,2103.4,8.04975]
[1617651422636,24.44708307,2103.5,2103.4,8.04975]
[1617651424436,24.0,2103.5,2103.4,8.04975]
[1617651430243,24.44679148,2103.5,2103.4,8.04975]
[1617651432646,24.0,2103.5,2103.4,8.04975]
[1617651432845,24.0,2103.5,2103.4,82.64585]
[1617651434750,24.0,2103.5,2103.4,84.44025]
[1617651437453,24.0,2103.5,2103.4,86.44025]
[1617651440458,24.0,2103.5,2103.4,84.44025]
[1617651440658,24.0,2103.5,2103.4,82.64585]
[1617651445065,26.8081,2103.5,2103.4,8.04975]
[1617651446266,27.25461646,2103.5,2103.4,8.04975]
[1617651446867,103.38961646,2103.5,2103.4,8.04975]
[1617651447166,102.9431,2103.5,2103.4,8.04975]
[1617651448968,102.9431,2103.5,2103.4,5.1428]
[1617651449167,27.25446138,2103.5,2103.4,5.1428]
[1617651449969,27.47737068,2103.5,2103.4,5.1428]
[1617651450168,30.38432068,2103.5,2103.4,5.1428]
[1617651450468,29.71505,2103.5,2103.4,5.1428]
[1617651452272,30.38398939,2103.5,2103.4,5.1428]
[1617651453673,31.34178939,2103.5,2103.4,5.1428]
[1617651453872,30.67285,2103.5,2103.4,5.1428]
[1617651454973,31.56529071,2103.5,2103.4,5.1428]
[1617651455773,31.56529071,2103.5,2103.4,4.4073]
[1617651456174,30.60749071,2103.5,2103.4,4.4073]
[1617651456376,29.71505,2103.5,2103.4,4.4073]
[1617651459981,30.60712999,2103.5,2103.4,4.4073]
[1617651460582,29.71505,2103.5,2103.4,4.4073]
[1617651464890,30.60766512,2103.5,2103.4,4.4073]
[1617651465589,29.71505,2103.5,2103.4,4.4073]
[1617651466392,30.8303887,2103.5,2103.4,4.4073]
[1617651466592,31.7889887,2103.5,2103.4,4.4073]
[1617651466792,30.8303887,2103.5,2103.4,4.4073]
[1617651467192,29.71505,2103.5,2103.4,4.4073]
[1617651468092,30.83068343,2103.5,2103.4,4.4073]
[1617651468292,29.71505,2103.5,2103.4,4.4073]
[1617651468795,30.8305132,2103.5,2103.4,4.4073]
[1617651469595,29.71505,2103.5,2103.4,4.4073]
[1617651471297,30.82997888,2103.5,2103.4,4.4073]
[1617651472099,60.82997888,2103.5,2103.4,4.4073]
[1617651472300,62.82997888,2103.5,2103.4,4.4073]
[1617651472499,62.82997888,2103.5,2103.4,1.2805]
[1617651472706,62.65935,2103.5,2103.4,0.1019]
[1617651473300,70.64659473,2103.5,2103.4,0.1019]
[1617651473499,70.64659473,2103.5,2102.1,2.90695]
[1617651473699,70.64659473,2103.5,2103.4,5.78]
[1617651473900,74.54830681,2103.5,2103.4,5.6782]
[1617651474101,69.8233,2103.4,2102.2,5.91]
[1617651474300,2.90695,2102.3,2102.1,2.90695]
[1617651474500,5.69865,2102.3,2102.2,5.88]
[1617651476903,6.36755923,2102.3,2102.2,5.88]
[1617651477803,5.69865,2102.3,2102.2,5.88]
[1617651478703,6.36758736,2102.3,2102.2,5.88]
[1617651481406,5.69865,2102.3,2102.2,5.88]
[1617651483910,2.90695,2102.3,2102.2,5.88]
[1617651484310,64.03175,2102.3,2102.2,5.88]
[1617651485410,64.47811243,2102.3,2102.2,5.88]
[1617651486009,67.27931243,2102.3,2102.2,5.88]
[1617651486912,66.83295,2102.3,2102.2,5.88]
[1617651487614,64.03175,2102.3,2102.2,5.88]
[1617651488416,61.1248,2102.3,2102.2,5.88]
[1617651498035,63.0533,2102.3,2102.2,5.88]
[1617651498444,65.96025,2102.3,2102.2,5.88]
[1617651501540,64.03175,2102.3,2102.2,5.88]
[1617651501742,61.1248,2102.3,2102.2,5.88]
[1617651502341,0.44509433,2102.7,2102.2,5.88]
[1617651502541,0.6676415,2102.9,2102.6,2.90695]
[1617651502542,0.44524009,2102.8,2102.6,2.90695]
[1617651502942,0.44524009,2102.8,2102.7,5.97]
[1617651503543,0.44533765,2102.9,2102.7,69.7711]
[1617651503945,0.44537245,2103.0,2102.7,69.7711]
[1617651504544,0.44537245,2103.0,2102.9,2.90695]
[1617651504944,0.44537245,2103.0,2102.9,8.64695]
[1617651505345,0.66805867,2103.2,2102.9,73.19035]
[1617651505644,0.44546266,2103.0,2102.9,73.19035]
[1617651506445,3.35241266,2103.0,2102.9,73.19035]
[1617651507446,2.90695,2103.0,2102.9,73.19035]
[1617651508853,3.57556396,2103.0,2102.9,73.19035]
[1617651509248,2.90695,2103.0,2102.9,73.19035]
[1617651511755,3.35277348,2103.0,2102.9,73.19035]
[1617651512857,2.90695,2103.0,2102.9,73.19035]
[1617651515060,3.57558818,2103.0,2102.9,73.19035]
[1617651515659,3.57558818,2103.0,2102.9,8.64695]
[1617651515861,2.90695,2103.0,2102.9,8.64695]
[1617651517063,3.57554586,2103.0,2102.9,8.64695]
[1617651517463,2.90695,2103.0,2102.9,8.64695]
[1617651517762,2.90695,2103.0,2102.9,5.74]
[1617651518262,2.90695,2103.0,2102.6,5.81]
[1617651518462,68.7916,2102.9,2102.5,74.7977]
[1617651518666,2.90695,2102.6,2102.5,77.70465]
[1617651518862,2.90695,2102.6,2102.5,83.55465]
[1617651519666,3.57734373,2102.6,2102.5,83.55465]
[1617651520265,3.57734373,2102.6,2102.5,8.75695]
[1617651521268,2.90695,2102.6,2102.5,8.75695]
[1617651522167,2.90695,2102.6,2102.5,74.01595]
[1617651525270,3.35402315,2102.6,2102.5,74.01595]
[1617651530175,0.44707315,2102.6,2102.5,74.01595]
[1617651532374,0.67060972,2102.8,2102.5,74.01595]
[1617651532575,0.67144503,2102.7,2102.5,74.01595]
[1617651532775,3.57839503,2102.7,2102.5,74.01595]
[1617651537180,3.57839503,2102.7,2102.5,8.75695]
[1617651537581,0.67203442,2102.6,2102.5,8.75695]
[1617651537985,72.64523442,2102.6,2102.5,8.75695]
[1617651539382,71.9732,2102.6,2102.5,8.75695]
[1617651542487,72.64523407,2102.6,2102.5,8.75695]
[1617651543791,71.9732,2102.6,2102.5,8.75695]
[1617651544190,72.64501938,2102.6,2102.5,8.75695]
[1617651544590,72.86989745,2102.6,2102.5,8.75695]
[1617651552805,72.86989745,2102.6,2102.5,9.71535]
[1617651553005,72.86989745,2102.6,2102.5,8.75695]
[1617651553305,0.89669745,2102.6,2102.5,8.75695]
[1617651553705,1.12140958,2102.9,2102.5,8.75695]
[1617651553706,0.8971685,2102.7,2102.5,8.75695]
[1617651553908,0.67301059,2102.6,2102.5,8.75695]
[1617651557117,0.67301059,2102.6,2102.5,81.56685]
[1617651557918,1.059e-05,2102.6,2102.5,8.75695]
[1617651558118,1.059e-05,2102.6,2102.5,10.75695]
[1617651558519,0.44864629,2102.6,2102.5,10.75695]
[1617651558918,0.44863943,2102.7,2102.5,10.75695]
[1617651559123,0.44863798,2102.6,2102.5,10.75695]
[1617651560721,0.28015194,2102.7,2102.6,67.8924]
[1617651560922,0.28015194,2102.7,2102.6,69.8924]
[1617651561124,0.4482431,2102.8,2102.6,69.8924]
[1617651561323,0.2801501,2102.7,2102.6,75.8524]
[1617651562525,2.8345501,2102.7,2102.6,5.96]
[1617651562926,2.5544,2102.7,2102.6,5.96]
[1617651563330,2.5544,2102.7,2102.6,6.9025]
[1617651563525,2.5544,2102.7,2102.6,5.96]
[1617651565426,3.45107563,2102.7,2102.6,5.96]
[1617651566026,2.5544,2102.7,2102.6,5.96]
[1617651567131,3.45102036,2102.7,2102.6,5.96]
[1617651571541,2.5544,2102.7,2102.6,5.96]
[1617651571741,81.67212856,2102.8,2102.6,5.96]
[1617651572342,80.55165,2102.8,2102.6,6.9065]
[1617651572540,80.55165,2102.8,2102.6,5.96]
[1617651572743,81.67189314,2102.8,2102.6,5.96]
[1617651572943,78.76494314,2102.8,2102.6,5.96]
[1617651573343,78.76494314,2102.8,2101.9,5.93]
[1617651573543,2.90695,2102.7,2102.6,2.90695]
[1617651573744,2.90695,2102.7,2102.6,8.74695]
[1617651575946,2.90695,2102.7,2102.6,5.84]
[1617651576548,2.90695,2102.7,2101.9,5.74]
[1617651576747,2.90695,2102.7,2102.6,5.95]
[1617651576948,4.02721771,2102.7,2102.6,5.95]
[1617651577147,4.02721771,2102.7,2101.9,5.85]
[1617651577349,4.02721771,2102.7,2102.6,5.96]
[1617651577749,67.9686,2102.5,2102.3,2.90695]
[1617651577949,67.9686,2102.5,2102.4,5.77]
[1617651578350,69.09227535,2102.5,2102.3,2.90695]
[1617651578550,69.09227535,2102.5,2102.4,5.78]
[1617651578750,67.9686,2102.5,2102.4,5.78]
[1617651582458,4.02548227,2102.7,2102.4,5.78]
[1617651583057,0.89381996,2102.6,2102.4,5.78]
[1617651583257,0.89373016,2102.5,2102.4,5.78]
[1617651585064,1.11721513,2102.6,2102.4,5.78]
[1617651585663,6.65945083,2102.6,2101.7,5.71]
[1617651585863,6.65945083,2102.6,2102.5,5.9]
[1617651586064,7.49620111,2102.6,2102.5,3.9]
[1617651586263,37.49620111,2102.6,2101.8,4.97]
[1617651586465,37.49620111,2102.6,2102.5,3.96]
[1617651586867,67.464,2102.5,2101.9,5.69]
[1617651587066,34.79361967,2102.6,2102.5,4.34]
[1617651587366,72.5972,2102.5,2102.0,5.9]
[1617651587569,0.27910455,2101.4,2101.2,2.90695]
[1617651587767,62.45290455,2101.4,2101.2,2.90695]
[1617651587967,62.45290455,2101.4,2101.3,0.07]
[1617651588167,62.45290455,2101.4,2101.2,2.90695]
[1617651588568,62.45290455,2101.4,2101.3,5.95]
[1617651589568,65.35985455,2101.4,2101.3,5.95]
[1617651590272,65.35985455,2101.4,2100.8,5.96]
[1617651590670,0.02792609,2101.0,2100.8,5.96]
[1617651590970,0.02792499,2101.1,2100.8,5.96]
[1617651591570,2.90695,2100.9,2100.8,8.86695]
[1617651591771,4.66165,2100.9,2100.8,8.86695]
[1617651601179,2.90695,2100.9,2100.8,8.86695]
[1617651606693,5.63595,2100.9,2100.8,8.86695]
[1617651609298,83.46985,2100.9,2100.8,8.86695]
[1617651610901,5.63595,2100.9,2100.8,8.86695]
[1617651611101,0.02779673,2101.6,2100.8,8.86695]
[1617651611702,0.02779673,2101.6,2101.5,2.90695]
[1617651612102,0.02779673,2101.6,2101.5,8.74695]
[1617651612503,0.05557342,2101.6,2101.5,8.74695]
[1617651613605,2.96252342,2101.6,2101.5,8.74695]
[1617651614703,2.90695,2101.6,2101.5,8.74695]
[1617651615104,2.96252398,2101.6,2101.5,8.74695]
[1617651619507,2.96252398,2101.6,2101.5,5.84]
[1617651619907,2.96252398,2101.6,2101.2,2.90695]
[1617651619908,2.93470484,2101.6,2101.2,2.90695]
[1617651620108,5.26570484,2101.6,2101.2,2.90695]
[1617651620309,5.26570484,2101.6,2101.5,5.83]
[1617651620709,5.26570484,2101.6,2101.2,2.90695]
[1617651620908,5.26570484,2101.6,2101.5,5.92]
[1617651621109,2.93470484,2101.6,2101.5,5.92]
[1617651621311,2.93470484,2101.6,2101.3,5.86]
[1617651621508,2.93470484,2101.6,2101.5,5.91]
[1617651621909,2.93470484,2101.6,2101.3,5.84]
[1617651622110,2.93470484,2101.6,2101.5,5.81]
[1617651622411,2.93470484,2101.6,2101.3,5.93]
[1617651622812,2.93470484,2101.6,2101.5,5.88]
[1617651623010,2.93470484,2101.6,2101.3,5.72]
[1617651623411,2.93470484,2101.6,2101.5,5.88]
[1617651623612,2.93470484,2101.6,2101.2,2.90695]
[1617651623813,2.93470484,2101.6,2101.3,5.87]
[1617651624012,2.90695,2101.6,2101.5,5.98]
[1617651624412,2.93471675,2101.6,2101.3,5.98]
[1617651624611,2.93471675,2101.6,2101.5,5.79]
[1617651625011,2.93471675,2101.6,2101.3,5.94]
[1617651625212,2.93471675,2101.6,2101.5,5.91]
[1617651625613,2.93471675,2101.6,2101.3,5.79]
[1617651625813,2.93471675,2101.6,2101.5,5.86]
[1617651626213,2.93471675,2101.6,2101.4,5.73]
[1617651626518,0.02775524,2101.5,2101.2,2.90695]
[1617651626918,0.02775524,2101.5,2101.4,5.77]
[1617651627119,0.02775524,2101.5,2101.3,5.98]
[1617651627320,0.02775524,2101.5,2101.2,2.90695]
[1617651627520,0.02775524,2101.5,2101.4,5.91]
[1617651627720,0.02775524,2101.5,2101.3,5.94]
[1617651627919,0.02775524,2101.5,2101.2,2.90695]
[1617651628119,0.02775524,2101.5,2101.4,5.74]
[1617651628319,0.02775524,2101.5,2101.3,5.96]
[1617651628518,0.02775524,2101.5,2101.2,2.90695]
[1617651628922,0.02775524,2101.5,2101.3,5.82]
[1617651629823,2.93469756,2101.6,2101.3,5.82]
[1617651637931,2.90695,2101.6,2101.3,5.82]
[1617651638634,2.93467176,2101.6,2101.3,5.82]
[1617651640038,2.90695,2101.6,2101.3,5.82]
[1617651640237,2.90695,2101.6,2100.6,2.571]
[1617651640238,0.05539387,2101.4,2100.9,5.97]
[1617651640638,0.27682814,2101.4,2101.3,5.85]
[1617651640837,0.27682814,2101.4,2100.8,5.74]
[1617651641038,0.02768141,2101.0,2100.8,5.74]
[1617651641238,2.23808141,2101.0,2099.9,0.9619]
[1617651641437,2.23808141,2101.0,2100.8,5.95]
[1617651641638,2.2104,2101.0,2100.8,5.95]
[1617651641839,2.90695,2100.9,2100.5,2.90695]
[1617651642440,2.90695,2100.9,2100.6,5.77]
[1617651644140,2.90695,2100.9,2100.6,6.7207]
[1617651644940,2.90695,2100.9,2100.6,5.77]
[1617651648142,2.90695,2100.9,2100.6,6.7357]
[1617651648442,2.90695,2100.9,2100.6,5.77]
[1617651649142,79.4129,2100.7,2100.6,5.77]
[1617651652447,79.4129,2100.7,2100.6,6.7248]
[1617651652645,79.4129,2100.7,2100.6,5.77]
[1617651661156,2.90695,2100.9,2100.6,5.77]
[1617651661557,0.02768506,2100.7,2100.6,5.77]
[1617651661958,64.5392,2100.6,2100.2,2.90695]
[1617651662559,64.5392,2100.6,2100.3,5.45]
[1617651663861,64.5392,2100.6,2100.5,2.90695]
[1617651664061,0.02770269,2100.8,2100.5,2.90695]
[1617651664263,0.02770269,2100.8,2100.5,8.74695]
[1617651665865,2.90695,2100.6,2100.5,8.74695]
[1617651670164,2.93467621,2100.6,2100.5,8.74695]
[1617651671968,2.93467621,2100.6,2100.5,5.84]
[1617651672367,2.93467621,2100.6,2099.7,5.82]
[1617651672568,55.7903,2099.8,2099.7,5.82]
[1617651672767,58.3216,2099.8,2099.6,2.0]
[1617651672968,58.3216,2099.8,2099.7,6.0]
[1617651673970,58.3216,2099.8,2099.7,8.90695]
[1617651689891,2.5313,2099.8,2099.7,8.90695]
[1617651690093,2.7709,2099.8,2099.7,8.90695]
[1617651695198,2.93471879,2099.9,2099.7,8.90695]
[1617651695798,0.02778632,2099.8,2099.7,8.90695]
[1617651695997,2.42098632,2099.8,2099.7,8.90695]
[1617651696599,2.3932,2099.8,2099.7,8.90695]
[1617651701404,65.55165,2099.9,2099.7,8.90695]
[1617651702607,65.57939657,2099.9,2099.7,8.90695]
[1617651703406,65.55165,2099.9,2099.7,8.90695]
[1617651707206,65.55165,2099.9,2099.7,10.90695]
[1617651717114,65.57942157,2099.9,2099.7,10.90695]
[1617651717515,65.55165,2099.9,2099.7,10.90695]
[1617651718815,65.57942335,2099.9,2099.7,10.90695]
[1617651719916,65.57942335,2099.9,2099.7,8.90695]
[1617651721119,0.05562584,2099.8,2099.7,8.90695]
[1617651722120,0.02781627,2099.9,2099.8,61.197]
[1617651722320,0.02781627,2099.9,2099.8,63.4087]
[1617651722521,0.0278103,2100.0,2099.9,5.85]
[1617651722726,0.0278103,2100.0,2099.9,7.85]
[1617651722935,0.0278037,2100.1,2099.9,2.0]
[1617651723120,0.0278037,2100.1,2100.0,5.9]
[1617651723321,0.0278037,2100.1,2100.0,7.9]
[1617651723720,0.0278037,2100.1,2100.0,2.0]
[1617651723922,0.02776871,2100.2,2100.0,7.71]
[1617651724123,0.02776871,2100.2,2100.1,2.90695]
[1617651724321,0.02776871,2100.2,2100.1,4.90695]
[1617651724522,0.02776871,2100.2,2100.1,10.78695]
[1617651724731,0.02776871,2100.2,2100.1,89.09185]
[1617651725022,0.05555668,2100.3,2100.1,89.09185]
[1617651725023,0.02776446,2100.3,2100.1,89.09185]
[1617651727625,0.02775653,2100.2,2100.1,89.09185]
[1617651728828,0.05550935,2100.2,2100.1,89.09185]